{"text_format":"1","workbook":"xlsx","n_sheets":1,"sheets":["price bid "],"not_rendered":{"charts":0,"images":0,"macros":1,"external_links":0,"defined_names":2,"comments":0,"pivot_tables":0},"unopened":[],"bounds":{"document_bytes":16777216,"sheet_cells":100000,"rows_first":2000,"rows_last":500,"rows_between":2000,"halvings":0,"cell_chars":16384,"cell_head_chars":4096},"cells_cut":0,"cells_raw":0,"read":"whole","date_system":"1900"}

{"sheet":"price bid ","index":0,"n_rows":27,"n_cols":8,"rows_kept":27,"cut":false,"hidden":false,"merged":[[24,2,24,7],[22,2,22,7],[23,2,23,7],[20,4,20,7],[0,0,0,7],[3,0,3,7],[1,0,1,7],[2,0,2,7],[4,0,4,3],[4,5,4,7],[20,0,20,3],[19,4,19,6],[21,0,21,7],[16,0,16,1],[6,0,6,1]]}
["    BHARAT HEAVY ELECTRICAL LIMITED , JHANSI              "]
["TOWNSHIP CIVIL DEPARTMENT"]
["PRICE BID (JS-146)"]
["Name of Work :  Misc. White washing, Distempering work in Type – 2, 3, A, B, X, &  M type of qtrs. In Township for 12 months"]
["Tender Enq No-TCX / TW / 22/03"]
["Sl. No.","DSR ref. 2016","Description of Work","% Allocation (Item-wise)","Unit ","Quantity ","Rate per Unit (in Rs.)","Amount (in Rs.)"]
["Section \"A\""]
[1,13.26,"Providing and applying Plaster of paris putty  of 2mm thickness.",0.55862283319999995,"M2",50,{"$f":"H8/F8","v":0},{"$f":"$H$20*D8%","v":0}]
[2,"14.42.1","White washing with lime to give an even shade :Old work (two or more coats)",4.8238281719999998,"M2",5000,{"$f":"H9/F9","v":0},{"$f":"$H$20*D9%","v":0}]
[3,"14.42.2","White washing with lime to give an even shade :Old work (one or more coats)",0.88946685319999996,"M2",1500,0,{"$f":"$H$20*D10%","v":0}]
[4,14.43,"Removing white or colour wash by scrapping and sand papering and preparing the surface smooth including necessary repairs to scratches etc. complete",3.9296551449999999,"M2",5000,0,{"$f":"$H$20*D11%","v":0}]
[5,14.45,"Distempering with oil bound washable distemper of approved brand and manufacture to give an even shade :Old work (one or more coats)",0.31390179419999997,"M2",100,0,{"$f":"$H$20*D12%","v":0}]
[6,14.46,"Removing dry or oil bound distemper, water proofing cement paint and the like by scrapping, sand papering and preparing the surface smooth including necessary repairs to scratches etc. complete.",30.4960063945,"M2",30000,0,{"$f":"$H$20*D13%","v":0}]
[7,"14.54.1","Painting with synthetic enamel paint of approved brand and manufacture of required colour to give an even shade :One or more coats on old work",0.2172840456,"M2",45,0,{"$f":"$H$20*D14%","v":0}]
[8,null,"All other items not covered above but covered in Sub head 13.0  & 14.0 of DSR 2016.",0.94123476530000005,"As per Requirment",10000,0,{"$f":"$H$20*D15%","v":0}]
["S. No.","Ref","Description of Items ","% Allocation (Item-wise)","Unit ","Quantity ","Rate per Unit (in Rs.)","Amount (in Rs.)"]
["Section \"B\""]
[9,"NS1","Extra for providing and mixing Fevocol -DDL",7.5274494145000004,"Kg",146,0,{"$f":"$H$20*D18%","v":0}]
[10,"NS2","Applying Two coat of dry /oil bound Emulsion paint / acrylic paint in residential building of township (Required material i.e. distemper emulsion or acrylic-paiont whichever required and will be provided by occupant) including preparing of smooth surface  as per direction of engineer in charge.",50.3025505839,"M2",33000,0,{"$f":"$H$20*D19%","v":0}]
[null,null,null,{"$f":"SUM(D8:D19)","v":100.0000000014},"Total amount quoted by bidder"]
["IN WORDS",null,null,null,{"$f":"rup(H20)","v":0}]
["Note -GST extra as applicable"]
[null,null,"1. Bidder has to quote in above unlocked cell (H20) only and take print out  to submitt alongwith Tech-bid. Item rate shall be calculated automatically. Calculated item rates upto four decimal points may be adjusted w.r.t. gross total amount and it shall be the itemwise final rate for  execution of contract and all other purposes."]
[null,null,"2. Quoted gross total amount should be considered only if quoted in this excel sheet and print out of this should only be considered for evaluation.  If Price is quoted in any other format other than the Excel Sheet enclosed to the NIT , the offer of the bidder  will be rejected"]
[null,null,"3.During the execution , the quantity of various items may vary to any extent depending on requirement of work/site and as per discretion of BHEL."]
[]
[null,null,null,null,"(Signature and Seal of  Contractor  )"]